bitfinex/quotes_SOLUSD_20260201
["timestamp","ask_amount","ask_price","bid_price","bid_amount"]
[1769982594443,13.70325367,101.54,101.5,4.115458]
[1769982594648,3.85443422,101.54,101.5,4.115458]
[1769982594934,13.70130344,101.56,101.5,4.115458]
[1769982596132,3.85443422,101.55,101.51,9.85124618]
[1769982596435,3.85443422,101.55,101.51,13.96670418]
[1769982596745,27.36,101.57,101.52,4.115458]
[1769982597232,3.85443422,101.56,101.52,4.115458]
[1769982598342,13.70103056,101.56,101.52,13.96550965]
[1769982598535,27.36,101.57,101.53,4.115458]
[1769982599038,31.21443422,101.57,101.53,4.115458]
[1769982599837,31.21443422,101.57,101.54,9.84833563]
[1769982601218,4.27527085,101.59,101.55,4.115458]
[1769982601419,3.85443422,101.59,101.51,4.115458]
[1769982601637,3.85443422,101.56,101.5,4.115458]
[1769982601823,4.27527085,101.57,101.49,9.85315547]
[1769982601824,3.85443422,101.55,101.49,9.85315547]
[1769982602027,3.85443422,101.51,101.46,0.2]
[1769982602219,3.85443422,101.48,101.41,4.315458]
[1769982602413,3.85443422,101.48,101.44,9.85748911]
[1769982602619,3.85443422,101.48,101.41,4.315458]
[1769982602819,3.85443422,101.46,101.41,4.315458]
[1769982603038,3.85443422,101.46,101.41,14.1763983]
[1769982603237,13.70896562,101.48,101.42,4.115458]
[1769982603431,9.8545314,101.48,101.42,4.115458]
[1769982603635,13.70896562,101.48,101.42,4.115458]
[1769982603946,3.85443422,101.47,101.42,4.115458]
[1769982604522,9.8545314,101.48,101.42,4.115458]
[1769982604742,3.85443422,101.47,101.42,4.115458]
[1769982604920,13.70966509,101.47,101.42,13.97452887]
[1769982605436,3.85443422,101.47,101.42,13.97452887]
[1769982605644,3.85443422,101.47,101.43,4.115458]
[1769982606021,3.85443422,101.46,101.41,14.17622031]
[1769982606332,3.85443422,101.48,101.43,4.115458]
[1769982606539,41.06846509,101.49,101.43,4.115458]
[1769982606741,3.85443422,101.48,101.41,14.17620203]
[1769982606930,13.70956381,101.47,101.42,13.97524511]
[1769982607124,3.85443422,101.46,101.41,10.06054983]
[1769982607422,3.85443422,101.46,101.41,14.17600783]
[1769982607622,4.03788481,101.45,101.37,4.04471585]
[1769982607821,4.03788481,101.44,101.37,4.04471585]
[1769982608048,4.03788481,101.44,101.39,3.84471585]
[1769982609344,9.85901607,101.43,101.39,3.84471585]
[1769982610825,13.89690088,101.43,101.39,3.84471585]
[1769982611635,4.03788481,101.43,101.39,9.86266507]
[1769982611845,4.03788481,101.43,101.38,13.70816934]
[1769982612557,4.03788481,101.43,101.37,13.90921685]
[1769982614043,4.03788481,101.43,101.38,3.84471585]
[1769982614849,4.03788481,101.45,101.38,3.84471585]
[1769982615027,4.03788481,101.45,101.39,3.84471585]
[1769982615943,41.51076464,101.47,101.41,3.84471585]
[1769982616446,4.03788481,101.46,101.4,38.36148112]
[1769982617447,45.54864945,101.47,101.41,3.84471585]
[1769982617627,4.03788481,101.46,101.41,3.84471585]
[1769982618164,4.03788481,101.46,101.42,13.70470401]
[1769982618329,4.03788481,101.48,101.43,3.84471585]
[1769982619352,13.89152452,101.49,101.43,3.84471585]
[1769982620225,13.89152452,101.49,101.45,3.84471585]
[1769982620426,4.03788481,101.49,101.45,3.84471585]
[1769982621026,4.03788481,101.49,101.42,3.84471585]
[1769982621027,4.03788481,101.48,101.42,3.84471585]
[1769982621343,4.03788481,101.45,101.39,3.84471585]
[1769982621527,4.03788481,101.43,101.37,4.04471585]
[1769982621725,4.03788481,101.43,101.37,13.9089928]
[1769982621925,4.27527085,101.41,101.34,9.86716781]
[1769982622141,31.65527085,101.41,101.35,10.06670519]
[1769982622343,18.17414464,101.41,101.36,13.71054063]
[1769982622551,4.03788481,101.4,101.36,13.71054063]
[1769982623747,9.86098898,101.41,101.36,13.71054063]
[1769982624047,4.03788481,101.42,101.37,3.84471585]
[1769982625440,4.03788481,101.42,101.38,13.70859432]
[1769982626132,4.03788481,101.41,101.36,3.84471585]
[1769982626449,4.03788481,101.41,101.37,9.86480941]
[1769982627450,13.899106,101.41,101.37,9.86480941]
[1769982627652,9.86010685,101.42,101.38,3.84471585]
[1769982627852,13.89799166,101.42,101.37,9.86480941]
[1769982628044,13.89799166,101.42,101.36,28.50872934]
[1769982628045,4.03788481,101.41,101.36,13.71030248]
[1769982628243,4.03788481,101.41,101.35,10.06641208]
[1769982628554,4.03788481,101.4,101.35,0.2]
[1769982629439,13.90079042,101.39,101.35,0.2]
[1769982629852,4.03788481,101.38,101.35,0.2]
[1769982630443,9.86290561,101.39,101.35,4.04471585]
[1769982630648,13.90079042,101.39,101.35,4.04471585]
[1769982631160,13.90079042,101.39,101.35,13.91147215]
[1769982631453,4.03788481,101.41,101.36,13.70984957]
[1769982631637,4.03788481,101.4,101.36,13.70984957]
[1769982632551,27.4,101.42,101.37,3.84471585]
[1769982632735,13.89724163,101.43,101.37,3.84471585]
[1769982633659,13.89724163,101.43,101.38,13.70859432]
[1769982636460,13.89724163,101.43,101.39,3.84471585]
[1769982641781,3.72536508,101.42,101.35,28.90960007]
[1769982642070,3.72536508,101.39,101.35,0.2]
[1769982642271,9.86387847,101.38,101.35,0.2]
[1769982642448,32.65707445,101.4,101.36,4.04452401]
[1769982643050,13.58774078,101.4,101.36,4.04452401]
[1769982645187,13.58774078,101.4,101.36,13.91026186]
[1769982649751,3.84409362,101.45,101.38,3.71992728]
[1769982649958,13.70116606,101.45,101.39,3.71992728]
[1769982650266,27.4,101.47,101.41,3.71992728]
[1769982650267,41.09956563,101.47,101.41,3.71992728]
[1769982650562,65.73738961,101.47,101.41,3.71992728]
[1769982650769,41.09956563,101.47,101.41,3.71992728]
[1769982651164,13.69956563,101.47,101.41,3.71992728]
[1769982651768,13.69956563,101.47,101.43,3.71992728]
[1769982652778,3.84409362,101.46,101.41,13.58049875]
[1769982653656,9.85547201,101.47,101.43,9.85901607]
[1769982653872,9.85547201,101.47,101.43,13.57894335]
[1769982654082,45.37399724,101.48,101.43,13.57894335]
[1769982654270,3.84409362,101.47,101.43,3.71992728]
[1769982655077,3.84409362,101.47,101.42,13.57943762]
[1769982655484,13.6999469,101.47,101.43,3.71992728]
[1769982656579,13.6999469,101.47,101.43,13.57872837]
[1769982659381,27.4,101.49,101.44,3.71992728]
[1769982659557,31.24409362,101.49,101.44,3.71992728]
[1769982660383,41.09772779,101.49,101.44,13.57767228]
[1769982660561,13.69772779,101.49,101.44,13.57767228]
[1769982660873,38.33069655,101.49,101.45,3.71992728]
[1769982661078,3.84409362,101.48,101.42,13.57946509]
[1769982661273,3.84409362,101.47,101.42,13.57946509]
[1769982662269,3.84409362,101.47,101.41,3.71992728]
[1769982662477,3.84409362,101.45,101.41,3.71992728]
[1769982663078,3.84409362,101.43,101.38,3.71992728]
[1769982663281,3.84409362,101.43,101.38,13.58335926]
[1769982663789,3.84409362,101.42,101.35,0.2]
[1769982664081,3.84409362,101.4,101.35,13.78660172]
[1769982664266,3.84409362,101.4,101.35,13.78664242]
[1769982664763,3.84409362,101.38,101.35,0.2]
[1769982664989,3.84409362,101.38,101.33,3.71992728]
[1769982665374,3.84409362,101.38,101.33,13.5879475]
[1769982666589,9.86485153,101.37,101.33,13.5879475]
[1769982667588,9.86485153,101.37,101.33,3.71992728]
[1769982667971,13.77796311,101.37,101.33,3.71992728]
[1769982669590,3.91311158,101.36,101.31,123.83353522]
[1769982669886,31.31311158,101.35,101.31,0.2]
[1769982670270,3.91311158,101.35,101.31,0.2]
[1769982671269,9.86777185,101.34,101.31,0.2]
[1769982672375,3.91311158,101.33,101.28,24.68330679]
[1769982672696,3.91311158,101.31,101.26,4.27487534]
[1769982672872,3.91311158,101.31,101.26,14.15036817]
[1769982673274,13.78477989,101.3,101.26,4.27487534]
[1769982673597,3.91311158,101.34,101.27,4.07487534]
[1769982673775,3.91311158,101.34,101.28,4.07487534]
[1769982674167,13.78123784,101.34,101.28,4.07487534]
[1769982674493,3.91311158,101.35,101.29,4.07487534]
[1769982674792,13.78006446,101.35,101.29,4.07487534]
[1769982675487,3.91311158,101.36,101.31,4.07487534]
[1769982675687,65.83863987,101.38,101.31,4.07487534]
[1769982676092,3.91311158,101.36,101.31,4.07487534]
[1769982676874,3.91311158,101.36,101.29,4.07487534]
[1769982677077,3.91311158,101.33,101.28,4.07487534]
[1769982677610,3.91311158,101.31,101.26,4.27487534]
[1769982677896,3.91311158,101.28,101.24,0.2]
[1769982679300,3.91311158,101.28,101.24,4.27487534]
[1769982679508,13.7869143,101.28,101.24,4.27487534]
[1769982679683,3.91311158,101.32,101.25,4.07487534]
[1769982679885,3.91311158,101.31,101.26,4.07487534]
[1769982680083,3.91311158,101.28,101.24,4.27487534]
[1769982680485,3.91311158,101.28,101.21,13.95483116]
[1769982680700,3.91311158,101.26,101.21,4.07487534]
[1769982681998,9.8726429,101.29,101.22,4.07487534]
[1769982682183,38.46736174,101.29,101.22,4.07487534]
[1769982682381,3.91311158,101.28,101.22,4.07487534]
[1769982682586,9.8706939,101.31,101.24,4.07487534]
[1769982682786,3.91311158,101.3,101.22,4.07487534]
[1769982682985,3.91311158,101.29,101.23,4.07487534]
[1769982684403,13.78599744,101.29,101.24,9.87751876]
[1769982684604,13.78599744,101.29,101.24,13.9523941]
[1769982686701,13.78599744,101.29,101.24,34.57131567]
[1769982686999,9.87203731,101.3,101.25,4.07487534]
[1769982687407,13.78514889,101.3,101.25,4.07487534]
[1769982687794,3.91311158,101.29,101.23,4.07487534]
[1769982688009,9.87203731,101.3,101.24,4.07487534]
[1769982688191,38.46431966,101.3,101.24,4.07487534]
[1769982689009,9.87203731,101.3,101.24,4.07487534]
[1769982690106,3.91311158,101.29,101.24,4.07487534]
[1769982690496,3.91311158,101.26,101.18,9.88286229]
[1769982690810,3.91311158,101.26,101.17,19.43023857]
[1769982691007,3.91311158,101.26,101.18,9.34642968]
[1769982691898,3.91311158,101.26,101.19,9.34642968]
[1769982692205,34.56790122,101.25,101.2,9.34642968]
[1769982692598,34.56790122,101.25,101.21,4.07487534]
[1769982693105,3.91311158,101.24,101.18,9.34642968]
[1769982693307,3.91311158,101.24,101.17,19.43011804]
[1769982693705,3.91311158,101.24,101.17,0.2]
[1769982694007,3.91311158,101.24,101.17,9.54642968]
[1769982694811,3.91311158,101.24,101.17,0.2]
[1769982695109,3.91311158,101.22,101.17,0.2]
[1769982695318,3.91311158,101.22,101.17,1e-08]
[1769982695692,3.91311158,101.22,101.17,1.48759573]
[1769982696012,3.91311158,101.22,101.17,1e-08]
[1769982696389,3.91311158,101.17,101.13,1e-08]
[1769982697213,9.88533017,101.16,101.13,1.48667046]
[1769982699491,9.88533017,101.16,101.13,1e-08]
[1769982699492,38.45539273,101.16,101.13,1e-08]
[1769982699811,3.85673714,101.15,101.13,1e-08]
[1769982700111,3.85673714,101.15,101.09,1.48458589]
[1769982700717,3.85673714,101.15,101.09,11.37631439]
[1769982701114,3.85673714,101.15,101.09,1.48458589]
[1769982701617,3.85673714,101.15,101.09,11.37670588]
[1769982701919,3.85673714,101.13,101.09,1.48458589]
[1769982702117,3.85673714,101.13,101.07,11.3748886]
[1769982702926,9.88728495,101.14,101.09,1.47999823]
[1769982703101,9.88728495,101.14,101.1,1.47999823]
[1769982703428,13.74402209,101.14,101.08,1.47999823]
[1769982703725,38.46223446,101.14,101.09,1.47999823]
[1769982704220,38.46223446,101.14,101.09,11.37186388]
[1769982704930,3.85673714,101.18,101.12,1.47778269]
[1769982705240,13.74054491,101.18,101.13,1.47778269]
[1769982705404,9.88064407,101.21,101.15,1.47778269]
[1769982705598,9.88064407,101.21,101.16,1.47778269]
[1769982705809,9.88064407,101.21,101.16,11.3625061]
[1769982706009,3.85673714,101.22,101.17,1.47561775]
[1769982706208,9.87718426,101.25,101.19,1.47561775]
[1769982706416,9.87504909,101.27,101.22,1.47561775]
[1769982706601,4.01222899,101.26,101.18,1.47561775]
[1769982706917,4.01222899,101.26,101.19,10.82204743]
[1769982707119,4.01222899,101.26,101.17,0.28432314]
[1769982707120,4.01222899,101.27,101.2,1.47455389]
[1769982707613,4.01222899,101.27,101.18,1.47455389]
[1769982707818,4.01222899,101.25,101.2,9.88142292]
[1769982708321,4.01222899,101.25,101.2,34.58498023]
[1769982708613,9.87556784,101.26,101.21,1.47350225]
[1769982708819,13.88779683,101.26,101.21,1.47350225]
[1769982709223,4.27527085,101.29,101.2,34.58498023]
[1769982709521,6.42916829,101.45,101.28,9.34642968]
[1769982709824,6.42916829,101.45,101.28,9.87361769]
[1769982709825,83.79337539,101.44,101.28,9.87361769]
[1769982710013,32.61702171,101.41,101.27,13.86352293]
[1769982710325,5.36086188,101.37,101.27,9.87455599]
[1769982710704,5.36086188,101.39,101.27,9.87455599]
[1769982711119,0.1,101.37,101.25,3.98918581]
[1769982711328,4.27527085,101.34,101.26,9.87484705]
[1769982711529,4.01222899,101.33,101.27,13.86375601]
[1769982711902,4.01222899,101.31,101.25,3.98918581]
[1769982713099,4.01222899,101.31,101.26,9.87495685]
[1769982713302,4.01222899,101.31,101.26,3.98918581]
[1769982714331,13.88332463,101.31,101.26,3.98918581]
[1769982714534,13.88332463,101.31,101.26,13.86439534]
[1769982715426,4.01222899,101.31,101.26,13.86439534]
[1769982719618,4.01222899,101.3,101.25,9.87621789]
[1769982719813,4.01222899,101.3,101.25,13.8654037]
[1769982720416,4.01222899,101.3,101.24,9.87728071]
[1769982720624,4.01222899,101.28,101.22,3.98918581]
[1769982721142,4.01222899,101.28,101.22,13.86799486]
[1769982721449,4.01222899,101.28,101.24,9.8768063]
[1769982721654,4.01222899,101.32,101.26,3.98918581]
[1769982721937,4.01222899,101.34,101.29,3.98918581]
[1769982722339,0.1,101.37,101.33,3.98918581]
[1769982722541,0.1,101.37,101.32,9.37504951]
[1769982722542,1e-08,101.37,101.36,3.98918581]
[1769982722726,1e-08,101.37,101.36,13.36423532]
[1769982722923,1e-08,101.37,101.36,3.98918581]
[1769982723134,1e-08,101.37,101.36,13.36423532]
[1769982723338,1e-08,101.37,101.36,3.98918581]
[1769982723647,1e-08,101.37,101.36,13.85501059]
[1769982723940,1e-08,101.37,101.35,9.86622541]
[1769982724124,1e-08,101.37,101.36,9.86582478]
[1769982724523,1e-08,101.37,101.35,13.85562593]
[1769982724727,1e-08,101.37,101.34,3.98918581]
[1769982724939,1e-08,101.37,101.36,13.85501059]
[1769982725128,1e-08,101.37,101.34,3.98918581]
[1769982725329,1e-08,101.37,101.35,9.86664858]
[1769982725529,1e-08,101.37,101.34,3.98918581]
[1769982725744,1e-08,101.37,101.34,13.85671707]
[1769982725941,1e-08,101.37,101.34,3.98918581]
[1769982726133,4.012229,101.37,101.32,3.98918581]
[1769982726840,4.012229,101.37,101.31,9.87055446]
[1769982727750,9.86582478,101.36,101.31,9.87055446]
[1769982728245,13.91893832,101.36,101.31,9.87055446]
[1769982728824,1e-08,101.37,101.32,3.96713872]
[1769982729030,1e-08,101.37,101.34,3.96713872]
[1769982729225,1e-08,101.37,101.32,13.34218823]
[1769982729449,13.91800322,101.37,101.32,3.96713872]
[1769982730031,4.05311354,101.36,101.31,9.87055446]
[1769982731436,4.05311354,101.36,101.32,9.86948585]
[1769982731639,1e-08,101.37,101.33,3.96713872]
[1769982732046,1e-08,101.37,101.34,13.83491057]
[1769982735650,1e-08,101.37,101.36,9.37504951]
[1769982735853,4.15311354,101.42,101.36,9.37504951]
[1769982736152,4.15311354,101.42,101.38,13.34218823]
[1769982736455,0.1,101.42,101.38,3.96713872]
[1769982736749,0.1,101.42,101.39,3.96713872]
[1769982736942,0.1,101.42,101.39,13.34218823]
[1769982737654,0.1,101.42,101.39,3.96713872]
[1769982739252,0.1,101.42,101.39,13.82958518]
[1769982739554,1e-08,101.42,101.41,3.96713872]
[1769982739740,1e-08,101.42,101.4,9.37504951]
[1769982739945,1e-08,101.42,101.39,47.86189871]
[1769982740139,1e-08,101.42,101.39,38.4868492]
[1769982740344,1e-08,101.42,101.4,9.37504951]
[1769982740656,1e-08,101.42,101.41,3.96713872]
[1769982740836,1e-08,101.42,101.41,13.34218823]
[1769982741535,4.05311354,101.46,101.41,47.85554982]
[1769982741736,4.05311354,101.49,101.45,3.96713872]
[1769982741944,1e-08,101.48,101.43,3.96713872]
[1769982742160,1e-08,101.48,101.44,13.34218823]
[1769982742339,1e-08,101.48,101.42,40.74218823]
[1769982742772,4.05311355,101.48,101.42,40.74218823]
[1769982743145,13.90728857,101.48,101.43,3.96713872]
[1769982743344,4.05311354,101.47,101.39,28.62250585]
[1769982743653,4.05311354,101.45,101.4,9.86163597]
[1769982744050,4.05311354,101.45,101.39,13.82968706]
[1769982744254,4.05311354,101.45,101.38,3.96713872]
[1769982744566,4.05311354,101.45,101.38,9.86318881]
[1769982744743,4.05311354,101.45,101.39,9.86277665]
[1769982746262,4.05311354,101.43,101.38,9.86387847]
[1769982747258,4.05311354,101.43,101.38,13.83101719]
[1769982748343,13.91216851,101.43,101.38,13.83101719]
[1769982751161,24.6434633,101.45,101.39,3.96713872]
[1769982751359,4.05311354,101.46,101.39,3.96713872]
[1769982752067,4.05311354,101.46,101.4,3.96713872]
[1769982752242,1e-08,101.48,101.44,3.96713872]
[1769982752442,1e-08,101.48,101.45,13.34218823]
[1769982752751,1e-08,101.48,101.43,13.34218823]
[1769982752949,1e-08,101.48,101.43,9.37504951]
[1769982753152,1e-08,101.48,101.46,9.85610092]
[1769982753359,1e-08,101.48,101.46,23.19828915]
[1769982753551,1e-08,101.48,101.46,9.85610092]
[1769982754069,1e-08,101.48,101.46,34.49635323]
[1769982754272,1e-08,101.48,101.45,9.85685219]
[1769982755474,1e-08,101.48,101.45,19.2319017]
[1769982755680,1e-08,101.48,101.44,9.85756423]
[1769982755977,1e-08,101.48,101.42,13.82647035]
[1769982756358,1e-08,101.48,101.42,3.96713872]
[1769982756661,1e-08,101.48,101.43,9.85881457]
[1769982757381,4.05311354,101.47,101.43,9.85881457]
[1769982757769,4.05311354,101.47,101.42,13.82700516]
[1769982759782,3.79476132,101.45,101.41,9.86051115]
[1769982759960,3.79476132,101.45,101.39,9.86196297]
[1769982760280,3.79476132,101.45,101.4,9.86148585]
[1769982760789,3.79476132,101.47,101.43,3.84681251]
[1769982761157,1e-08,101.48,101.44,3.84681251]
[1769982761376,1e-08,101.48,101.46,3.84681251]
[1769982762174,1e-08,101.48,101.46,13.70225671]
[1769982762759,1e-08,101.48,101.46,47.71755853]
[1769982763983,1e-08,101.48,101.47,3.84681251]
[1769982766476,1e-08,101.48,101.47,9.85512959]
[1769982768184,1e-08,101.48,101.46,9.85569261]
[1769982768373,1e-08,101.48,101.45,9.8564978]
[1769982770986,1e-08,101.48,101.45,23.14345199]
[1769982771184,1e-08,101.48,101.45,13.28695419]
[1769982772378,1e-08,101.48,101.45,3.91190468]
[1769982772981,1e-08,101.48,101.46,3.91190468]
[1769982774082,1e-08,101.48,101.45,3.91190468]
[1769982774493,1e-08,101.48,101.41,3.91190468]
[1769982774694,1e-08,101.48,101.39,13.28695419]
[1769982774695,3.89525842,101.46,101.39,13.28695419]
[1769982775188,38.39501198,101.45,101.39,13.28695419]
[1769982775384,38.39501198,101.45,101.39,9.37504951]
[1769982775589,38.39501198,101.45,101.4,3.91190468]
[1769982775992,3.89525842,101.44,101.4,3.91190468]
[1769982777492,9.85901607,101.43,101.4,3.91190468]
[1769982778395,34.50655624,101.43,101.4,3.91190468]
[1769982779784,9.85901607,101.43,101.4,3.91190468]
[1769982781489,9.85707244,101.45,101.41,3.91190468]
[1769982781997,3.89525842,101.44,101.4,3.91190468]
[1769982782680,9.85652582,101.46,101.41,3.91190468]
[1769982782880,3.89525842,101.45,101.4,36.73166518]
[1769982783081,3.89525842,101.45,101.37,13.26356986]
[1769982783285,3.89525842,101.41,101.34,3.91190468]
[1769982783473,3.89525842,101.4,101.32,23.13294381]
[1769982783678,3.89525842,101.4,101.33,3.91190468]
[1769982783893,3.89525842,101.38,101.33,3.91190468]
[1769982784776,38.41542805,101.39,101.34,3.91190468]
[1769982785711,9.86290561,101.39,101.35,3.91190468]
[1769982785871,3.89525842,101.39,101.33,3.91190468]
[1769982786679,3.89525842,101.39,101.31,0.2]
[1769982787175,3.89525842,101.39,101.31,4.11190468]
[1769982787810,88.10170081,101.4,101.31,4.11190468]
[1769982787811,34.52357466,101.38,101.31,4.11190468]
[1769982788001,3.98574535,101.37,101.32,4.02441474]
[1769982789793,38.51613208,101.36,101.32,4.02441474]
[1769982790201,38.51613208,101.36,101.31,0.2]
[1769982790392,38.51613208,101.36,101.31,4.22441474]
[1769982790801,9.86582478,101.36,101.32,4.02441474]
[1769982791394,9.86435317,101.38,101.34,4.02441474]
[1769982791599,9.86290561,101.39,101.34,13.89196025]
[1769982791894,9.86290561,101.39,101.35,4.02441474]
[1769982792109,13.84865096,101.39,101.35,4.02441474]
[1769982793006,9.86290561,101.39,101.35,4.02441474]
[1769982793188,9.86193293,101.4,101.36,4.02441474]
[1769982793885,3.98574535,101.42,101.37,4.02441474]
[1769982794208,3.98574535,101.41,101.36,4.02441474]
[1769982794407,3.98574535,101.41,101.35,4.02441474]
[1769982795008,3.98574535,101.41,101.34,4.02441474]
[1769982795191,3.98574535,101.41,101.34,13.89201502]
[1769982796007,3.98574535,101.39,101.34,13.89201502]
[1769982796415,3.98574535,101.39,101.35,4.02441474]
[1769982796912,3.98574535,101.39,101.34,9.86760028]
[1769982797208,3.98574535,101.39,101.34,13.89201502]
[1769982798510,9.86387847,101.38,101.34,13.89201502]
[1769982800093,3.98574535,101.39,101.34,13.89201502]
[1769982800300,13.84907592,101.39,101.34,13.89201502]
[1769982800814,13.84907592,101.39,101.35,4.02441474]
[1769982801710,28.63709563,101.42,101.37,4.02441474]
[1769982802013,3.98574535,101.41,101.37,4.02441474]
[1769982802212,3.98574535,101.41,101.35,4.02441474]
[1769982802408,3.98574535,101.41,101.33,13.89265939]
[1769982802605,3.98574535,101.38,101.31,0.2]
[1769982802915,3.98574535,101.34,101.31,0.2]
[1769982803995,3.98574535,101.34,101.29,0.2]
[1769982804305,3.98574535,101.34,101.25,9.35166518]
[1769982804306,3.98574535,101.33,101.25,13.90081298]
[1769982804613,3.98574535,101.32,101.24,13.90151367]
[1769982804816,3.98574535,101.3,101.25,13.90021357]
[1769982805410,3.98574535,101.3,101.23,13.90239397]
[1769982805606,3.98574535,101.3,101.26,4.02441474]
[1769982805806,3.98574535,101.3,101.25,9.876496]
[1769982806009,3.98574535,101.3,101.25,13.90091074]
[1769982806204,3.98574535,101.3,101.26,4.02441474]
[1769982806392,9.87007868,101.32,101.26,4.02441474]
[1769982806393,3.98574535,101.31,101.26,4.02441474]
[1769982806592,3.98574535,101.31,101.25,13.90091074]
[1769982806792,3.98574535,101.31,101.27,4.02441474]
[1769982807012,3.98574535,101.31,101.28,9.87361769]
[1769982807802,3.98574535,101.33,101.28,4.02441474]
[1769982808002,3.98574535,101.34,101.27,38.58511605]
[1769982809020,3.98574535,101.34,101.27,9.87421963]
[1769982809205,3.98574535,101.32,101.26,9.87504866]
[1769982809396,3.98574535,101.32,101.23,38.0705825]
[1769982809597,3.98574535,101.32,101.25,4.02441474]
[1769982810618,3.98574535,101.32,101.22,24.69679058]
[1769982810817,3.98574535,101.32,101.21,4.02441474]
[1769982811009,3.98574535,101.29,101.22,9.87892236]
[1769982811209,3.98574535,101.27,101.22,13.9033371]
[1769982811897,3.98574535,101.29,101.23,4.02441474]
[1769982812117,3.98574535,101.31,101.25,4.02441474]
[1769982812618,3.98574535,101.31,101.26,4.02441474]
[1769982813010,3.98574535,101.31,101.24,13.37607992]
[1769982813215,13.85741366,101.3,101.25,9.8765432]
[1769982813515,13.85741366,101.3,101.25,13.90095794]
[1769982815302,3.98574535,101.33,101.27,4.02441474]
[1769982815625,3.98574535,101.32,101.28,4.02441474]
[1769982816007,3.98574535,101.41,101.3,4.02441474]
[1769982816209,3.98574535,101.36,101.29,4.02441474]
[1769982816415,3.98574535,101.36,101.29,13.37607992]
[1769982818325,4.03202905,101.35,101.3,24.67801195]
[1769982818514,4.03202905,101.35,101.3,28.63205894]
[1769982819317,4.03202905,101.35,101.31,9.87035598]
[1769982819621,13.89915713,101.35,101.31,9.87035598]
[1769982821927,24.66273832,101.37,101.32,3.95404699]
[1769982821928,13.89736717,101.37,101.32,3.95404699]
[1769982822312,4.03202905,101.36,101.32,3.95404699]
[1769982822833,4.03202905,101.38,101.34,3.95404699]
[1769982823930,4.03202905,101.37,101.33,9.86874568]
[1769982824531,4.03202905,101.37,101.33,13.82279267]
[1769982825128,4.03202905,101.36,101.31,3.95404699]
[1769982825311,4.03202905,101.36,101.3,3.95404699]
[1769982825811,4.03202905,101.36,101.29,9.87182972]
[1769982826004,3.88564798,101.34,101.28,3.85565277]
[1769982826223,3.88564798,101.34,101.28,13.20731795]
[1769982827123,13.75382193,101.34,101.29,9.8726429]
[1769982828527,3.88564798,101.33,101.29,9.8726429]
[1769982833428,3.88564798,101.33,101.29,13.72829567]
[1769982833931,3.88564798,101.32,101.29,9.8726429]
[1769982835732,3.88564798,101.34,101.3,3.85565277]
[1769982835938,3.88564798,101.35,101.3,3.85565277]
[1769982836344,3.88564798,101.35,101.31,3.85565277]
[1769982836935,3.88564798,101.35,101.29,34.55425016]
[1769982837139,3.88564798,101.35,101.29,38.40990293]
[1769982837459,34.5309049,101.36,101.29,38.40990293]
[1769982837460,13.75341983,101.34,101.29,38.40990293]
[1769982837927,3.88564798,101.33,101.29,38.40990293]
[1769982838445,13.75200491,101.36,101.31,3.85565277]
[1769982838642,3.88564798,101.35,101.29,38.40990293]
[1769982839645,3.88564798,101.34,101.29,13.72829567]
[1769982841253,3.88564798,101.33,101.29,13.72829567]
[1769982841747,3.88564798,101.33,101.26,9.87509931]
[1769982841946,3.88564798,101.33,101.25,3.85565277]
[1769982842146,3.88564798,101.33,101.26,3.85565277]
[1769982842447,3.88564798,101.33,101.27,9.87409107]
[1769982842946,3.88564798,101.33,101.26,3.85565277]
[1769982842947,3.88564798,101.33,101.29,9.87249087]
[1769982843158,3.88564798,101.33,101.26,3.85565277]
[1769982843350,3.88564798,101.31,101.22,3.85565277]
[1769982844054,3.88564798,101.28,101.22,13.73465756]
[1769982844253,3.88564798,101.28,101.23,9.87845784]
[1769982844551,3.88564798,101.28,101.24,13.73313597]
[1769982845553,3.88564798,101.32,101.27,3.85565277]
[1769982847249,3.88564798,101.32,101.25,3.85565277]
[1769982847442,3.88564798,101.3,101.25,3.85565277]
[1769982849833,3.71921884,101.28,101.23,13.12222389]
[1769982850032,3.71921884,101.28,101.22,3.75444539]
[1769982850732,3.71921884,101.28,101.21,3.75444539]
[1769982851039,3.71921884,101.28,101.2,9.5677785]
[1769982851352,3.71921884,101.26,101.2,0.2]
[1769982851531,27.42,101.27,101.22,9.3677785]
[1769982851740,13.59113212,101.3,101.26,9.3677785]
[1769982852055,3.71921884,101.28,101.22,3.75444539]
[1769982852649,34.55432063,101.29,101.24,3.75444539]
[1769982852846,38.27353947,101.29,101.24,13.12222389]
[1769982853149,38.27353947,101.29,101.24,3.75444539]
[1769982853547,3.71921884,101.28,101.22,3.75444539]
[1769982853757,3.71921884,101.28,101.21,3.75444539]
[1769982854053,3.71921884,101.26,101.21,3.75444539]
[1769982855435,3.71921884,101.26,101.17,27.85366923]
[1769982855644,2.91263412,101.21,101.11,3.75444539]
[1769982855846,2.91263412,101.16,101.1,5.16449277]
[1769982856068,2.91251862,101.14,101.09,64.93538969]
[1769982856357,2.91251862,101.14,101.07,3.75444539]